Cogmind - Beta 11.1 @@@ ROGUE MODE // 2022.06.01 @ 14:26:32 Player: Demise Result: Destroyed by YI-UF0 with YI-UF0's Doublenader Performance ------------- Evolutions (0) 0 Regions Visited (2) 400 Robots Destroyed (35) 175 Value Destroyed (628) 628 Prototype IDs (2) 40 Alien Tech Used (0) 0 Bonus (0) 0 TOTAL SCORE: 1243 Bonus ------- None Cogmind --------- Core Integrity 0/250 Matter 282/300 Energy 250/250 System Corruption 0% Temperature Cool (0) Movement Rolling (140) Ox4 Location -10/Mines Parts ------- > --- POWER (1) -------- Ion Engine > --- PROPULSION (2) --- Wheel > --- UTILITY (2) ------ High-capacity Storage Unit Core Shielding > --- WEAPON (2) ------- Light Assault Rifle > --- INVENTORY (20) --- Wheel Wheel Wheel Wheel Cooling System Sensor Array Seismic Detector Targeting Computer Core Shielding Core Shielding Hacking Suite Small Laser Assault Rifle Light Assault Rifle Light Assault Rifle Light Assault Rifle Light Assault Rifle Grenade Launcher Datajack Peak State ------------ > --- POWER ------------ Ion Engine > --- PROPULSION ------- Wheel Compact Wheel > --- UTILITY ---------- High-capacity Storage Unit Seismic Detector > --- WEAPON ----------- Light Assault Rifle Light Assault Rifle > --- INVENTORY -------- Wheel Wheel Wheel Wheel Cooling System Sensor Array Targeting Computer Core Shielding Core Shielding Core Shielding Hacking Suite Small Laser Assault Rifle Light Assault Rifle Light Assault Rifle Grenade Launcher Datajack [Rating: 9] Favorites ----------- Power Ion Engine Engine Ion Engine Propulsion Compact Wheel Treads Light Treads Wheel Compact Wheel Utility Seismic Detector Device Seismic Detector Storage High-capacity Storage Unit Protection Light Armor Plating Weapon Light Assault Rifle Ballistic Gun Light Assault Rifle Launcher Grenade Launcher Build | -11 -10 -10 ------- Run | Scr Mat Min Slots Evolved . | . . . Power . | . . . Propulsion . | . . . Utility . | . . . Weapon . | . . . Parts Attached 34 | 8 21 5 Power 1 | 1 . . Engine 1 | 1 . . Core . | . . . Reactor . | . . . Propulsion 8 | 3 5 . Treads 1 | 1 . . Leg . | . . . Wheel 7 | 2 5 . Hover . | . . . Flight . | . . . Utility 14 | 2 9 3 Device 7 | 1 5 1 Storage 3 | 1 2 . Processor . | . . . Hackware . | . . . Protection 4 | . 2 2 Artifact . | . . . Weapon 11 | 2 7 2 Energy Gun . | . . . Energy Cannon . | . . . Ballistic Gun 10 | 2 7 1 Ballistic Cannon . | . . . Launcher 1 | . . 1 Special Weapon . | . . . Impact Weapon . | . . . Slashing Weapon . | . . . Piercing Weapon . | . . . Special Melee Weapon . | . . . Unidentified Prototypes . | . . . Parts Lost 6 | . 4 2 Power . | . . . Propulsion 2 | . 1 1 Utility 1 | . 1 . Weapon 3 | . 2 1 Highest Loss Streak 2 | . 2 2 To Critical Strikes . | . . . Average Slot Usage (%) 95 | . 94 100 Engine 14 | . 14 14 Wheel 27 | . 27 28 Device 11 | . 11 11 Storage 14 | . 14 14 Protection 1 | . 1 2 Ballistic Gun 25 | . 24 28 Naked Turns . | . . . Heaviest Build 51 | 14 51 48 Greatest Support 26 | 26 26 26 Greatest Overweight (x) 10 | . 10 1 Average Overweight (x) . | . . 1 Largest Inventory Capacity 20 | 8 20 20 Average Capacity 17 | 6 18 20 Most Carried 19 | 5 16 19 Average Carried 10 | 2 9 18 Final Capacity 20 | 8 20 20 Final Carried 19 | 4 16 19 Class Distribution -------------------- 100% | Mutant Dominant Class ---------------- Mutant | -10/Materials Mutant | -10/Mines Resources | -11 -10 -10 ----------- Run | Scr Mat Min Matter Collected 891 | 307 530 54 Remotely . | . . . Salvage Created 1027 | 172 791 64 Parts 79 | 19 52 8 Haulers Intercepted 2 | . 2 . Recyclers Shooed 1 | 1 . . Parts Field Recycled . | . . . Retrieved Matter . | . . . Parts Self-Destructed . | . . . Prevented . | . . . Kills | -11 -10 -10 ------- Run | Scr Mat Min Combat Hostiles Destroyed 21 | . 16 5 Guns 18 | . 16 2 AOE 3 | . . 3 Classes Destroyed 7 | 2 5 . Tunneler 5 | 5 . . Hauler 2 | . 2 . Recycler 3 | 1 2 . Operator 2 | . 2 . Watcher 2 | . 2 . Swarmer 10 | . 5 5 Grunt 11 | . 11 . Best Kill Streak 6 | 6 3 3 Combat Bots Only 3 | . 3 3 Max Kills in Single Turn 3 | 1 1 3 Gunslinging . | . . . Exploded 3 | . . 3 Melee . | . . . Uniques/NPCs Destroyed . | . . . Combat | -11 -10 -10 -------- Run | Scr Mat Min Damage Taken 958 | . 552 406 Core 281 | . 93 188 Absorbed by Shields . | . . . Redirected to Shielding 30 | . . 30 Regen/Repaired (Parts) 101 | . 101 . Core Remaining (%) 100 | 100 . . Volleys Fired 125 | 10 103 12 Largest 2 | 2 2 2 Hottest 40 | 40 40 40 Shots Fired 229 | 20 186 23 Gun 228 | 20 186 22 Cannon . | . . . Launcher 1 | . . 1 Special . | . . . Kinetic 228 | 20 186 22 Thermal . | . . . Explosive 1 | . . 1 Electromagnetic . | . . . Robot Hit Streak 11 | 9 11 7 Robot Miss Streak 11 | 1 11 2 Penetration Max . | . . . Secondary Targets 1 | . . 1 Max Gunslinging Chain 1 | . . 1 Shots Hit Robots 143 | 13 112 18 Core Hits 64 | 7 47 10 Critical Kills . | . . . Critical Parts Destroyed 1 | . 1 . Critical Strikes 1 | . 1 . Destroy 1 | . 1 . Melee Attacks . | . . . Impact . | . . . Slashing . | . . . Piercing . | . . . Sneak Attacks . | . . . Combat Hostiles . | . . . Follow-up Attacks . | . . . Damage Inflicted 1616 | 155 1181 280 Guns 1475 | 155 1169 151 Cannons . | . . . Explosions 129 | . . 129 Melee . | . . . Ramming 12 | . 12 . Kinetic 1475 | 155 1169 151 Thermal . | . . . Explosive 129 | . . 129 Electromagnetic . | . . . Impact . | . . . Slashing . | . . . Piercing . | . . . Highest Corruption . | . . . Average Corruption . | . . . Corruption Purged . | . . . Corruption Blocked . | . . . Overload Shots . | . . . Overflow Damage . | . . . Projectiles . | . . . Explosions . | . . . Melee . | . . . Knockbacks . | . . . Impact . | . . . Kinetic . | . . . Secondary . | . . . Self-Inflicted Damage 6 | . 6 . Shots . | . . . Rammed 1 | . 1 . Targets Rammed 1 | . 1 . Kicked . | . . . Crushed . | . . . Highest Temperature 46 | . 46 . Average Temperature 11 | . 11 . Received Heat Transfer 267 | . 267 . Siege Activations . | . . . Robots Corrupted . | . . . Combat Hostiles . | . . . Parts Fried . | . . . Impact Corruptions . | . . . Robots Melted . | . . . Combat Hostiles . | . . . Parts Melted . | . . . Heat Transferred . | . . . Parts Sabotaged . | . . . Parts Stolen . | . . . Parts Stripped . | . . . Power Chain Reactions . | . . . Missiles Intercepted . | . . . Alert | -11 -10 -10 ------- Run | Scr Mat Min Peak Influence 415 | 30 415 295 Initial 122 | . 19 122 Average 252 | 10 269 255 Maximum Alert Level 2 | . 2 1 Low Security (%) 25 | 100 23 1 Level 1 66 | . 66 98 Level 2 7 | . 9 . Level 3 . | . . . Level 4 . | . . . Level 5 . | . . . High Security . | . . . Max Security . | . . . Squads Dispatched 5 | . 5 . Investigation 3 | . 3 . Extermination . | . . . Reinforcement 2 | . 2 . Assault . | . . . Garrison . | . . . Intercept . | . . . Searches Triggered . | . . . Construction Impeded . | . . . Haulers Reinforced . | . . . Active Scanning Responses . | . . . Cargo Convoy Interrupts . | . . . Stealth | -11 -10 -10 --------- Run | Scr Mat Min Distress Signals 3 | . 3 . Communications Jammed . | . . . Distress Signals . | . . . Times Spotted 41 | . 34 7 Peak Tracking Total 5 | . 5 3 Tactical Retreats 4 | . 3 1 Traps | -11 -10 -10 ------- Run | Scr Mat Min Traps Triggered 3 | . 3 . Indirectly . | . . . Trap Hack Attempts . | . . . Triggered . | . . . Disarmed . | . . . Reprogrammed . | . . . Reused . | . . . Traps Extracted . | . . . Installed . | . . . Triggered . | . . . Machines | -11 -10 -10 ---------- Run | Scr Mat Min Machines Disabled 2 | . 1 1 Max in Single Turn 1 | . 1 1 Machines Sabotaged . | . . . Garrisons Compromised . | . . . Overloaded Fab Kills . | . . . Hacking | -11 -10 -10 --------- Run | Scr Mat Min Machines Accessed 9 | . 9 . Terminals 6 | . 6 . Fabricators . | . . . Repair Stations 1 | . 1 . Recycling Units 2 | . 2 . Scanalyzers . | . . . Garrison Access . | . . . Total Hacks 44 | . 44 . Successful 27 | . 27 . Failed 17 | . 17 . Catastrophic 1 | . 1 . Database Lockouts . | . . . Manual 31 | . 31 . Terminals 34 | . 34 . Fabricators . | . . . Repair Stations 4 | . 4 . Recycling Units 6 | . 6 . Scanalyzers . | . . . Garrison Access . | . . . Terminal Hacks 12 | . 12 . Robot Analysis 4 | . 4 . Prototype ID Bank 1 | . 1 . Level Access Points 1 | . 1 . Branch Access Points 1 | . 1 . Terminal Index 1 | . 1 . Locate Traps 1 | . 1 . Recall Investigation 1 | . 1 . Zone Layout 2 | . 2 . Fabricator Hacks . | . . . Repair Station Hacks 4 | . 4 . Scan Component 2 | . 2 . Repair 2 | . 2 . Recycling Unit Hacks 2 | . 2 . Retrieve Components 2 | . 2 . Scanalyzer . | . . . Garrison Access Hacks . | . . . Unauthorized Hacks 9 | . 9 . Terminals 7 | . 7 . Track 1 | . 1 . Botnet 5 | . 5 . Operators 1 | . 1 . Fabricators . | . . . Repair Stations . | . . . Recycling Units 2 | . 2 . Tunnel 2 | . 2 . Scanalyzers . | . . . Garrison Access . | . . . Data Cores Recovered . | . . . Used . | . . . Hacking Detections 6 | . 6 . Full Trace Events 1 | . 1 . Feedback Events . | . . . Feedback Blocked . | . . . Robot Schematics Acquired . | . . . Robots Built . | . . . Authchips . | . . . Time . | . . . Total Robot Build Rating . | . . . Part Schematics Acquired . | . . . Parts Built . | . . . Authchips . | . . . Time . | . . . Total Part Build Rating . | . . . Parts Repaired 2 | . 2 . Time 58 | . 58 . Parts Recycled . | . . . Recycled Matter . | . . . Retrieved Matter . | . . . Retrieved Components 7 | . 7 . Parts Scanalyzed . | . . . Part Schematics Acquired . | . . . Parts Damaged . | . . . Bothacking | -11 -10 -10 ------------ Run | Scr Mat Min Used RIF Installer . | . . . Robots Hacked . | . . . Non-combat . | . . . Combat . | . . . Robot Hacks Applied . | . . . Relay Couplers Released . | . . . Fabnet Peak Effective % . | . . . Robots Rewired . | . . . Allies Hacked . | . . . Hacks Repelled . | . . . Allies | -11 -10 -10 -------- Run | Scr Mat Min Total Allies 3 | . . 3 Largest Group 3 | . . 3 Highest-Rated Group 40 | . . 40 Highest-Rated Ally 16 | . . 16 Total Orders . | . . . Ally Attacks 5 | . . 5 Total Damage 65 | . . 65 Kills . | . . . Allies Corrupted . | . . . Allies Melted . | . . . Intel | -11 -10 -10 ------- Run | Scr Mat Min Robot Analysis Total 4 | . 4 . Derelict Logs Recovered 1 | . . 1 Drone Launches . | . . . Drone Recoveries . | . . . Exploration | -11 -10 -10 ------------- Run | Scr Mat Min Turns Passed 1348 | 82 1105 161 Spaces Moved 833 | 43 681 109 Core 9 | 8 1 . Treads 1 | 1 . . Legs . | . . . Wheels 823 | 34 680 109 Hover . | . . . Flight . | . . . Fastest Speed 50 | 50 90 105 Average Speed 102 | 83 103 105 Slowest Speed 550 | 160 550 105 Overloaded Moves . | . . . Propulsion Burnouts . | . . . Robots Hopped . | . . . Cave-ins Triggered . | . . . Exploration Rate (%) 44 | 3 98 32 Regions Visited 2 Branch Regions 1 Pre-discovered Areas 2 | . 2 . Known Exits Taken 1 | . 1 . Unknown Exits Taken 1 | 1 . . Scrap Searched . | . . . Spaces Dug . | . . . Terrain Destroyed 6 | . . 6 Melee . | . . . Projectile . | . . . AOE 6 | . . 6 Terrain Rammed . | . . . Walls Destroyed . | . . . Machines Disabled . | . . . Actions | -11 -10 -10 --------- Run | Scr Mat Min Total 1113 | 68 911 134 Wait 94 | . 89 5 Move 831 | 42 680 109 Hop . | . . . Pick Up 23 | 5 15 3 Fast Attach 14 | 8 6 . Attach 5 | . 5 . Detach 1 | 1 . . Swap 15 | . 10 5 Drop 4 | 2 2 . Fire 125 | 10 103 12 Melee . | . . . Ram 1 | . 1 . Kick . | . . . Crush . | . . . Escape Stasis . | . . . Rewire . | . . . Trap . | . . . Miscellaneous . | . . . Route ------- -11/Scrapyard -10/Materials (discovered 5 exits: *Mat x3 / *Min x2) -10/Mines History --------- Turn | Location | Event 7 | -11/Scrapyard | Discovered new exit (range 15) 83 | -11/Scrapyard | Entered Materials 171 | -10/Materials | Discovered new exit (range 14) 311 | -10/Materials | Discovered new exit (range 10) 329 | -10/Materials | Build established: Mutant 490 | -10/Materials | Discovered new exit (range 15) 736 | -10/Materials | Repaired Cooling System 763 | -10/Materials | Repaired Lgt. Assault Rifle 852 | -10/Materials | Discovered new exit (range 9) 899 | -10/Materials | Discovered new exit (range 9) 1042 | -10/Materials | Identified exit to Materials 1042 | -10/Materials | Identified exit to Mines 1188 | -10/Materials | Entered Mines 1216 | -10/Mines | Learned Materials machine intel 1282 | -10/Mines | Core integrity fell below 50% 1319 | -10/Mines | Assisted by bots powering up and referring to "LRC-V3" 1346 | -10/Mines | Core integrity fell below 20% 1349 | -10/Mines | Destroyed by YI-UF0 with YI-UF0's Doublenader Last Messages --------------- 01285_ Switching to secondary target: S-10 Pest. 01287_ K-01 Serf collects debris. 01288_ S-10 Pest destroyed. 01292_ Acquired Lgt. Assault Rifle. 01292_ K-01 Serf collects debris. 01293_ Acquired 20 matter. 01295_ Acquired 10 matter. 01296_ K-01 Serf collects debris. 01319_ Trooper 1a: "Hello LRC-V3. What is your command?" 01319_ Mercenary 1a: "Hello LRC-V3. What is your command?" 01319_ Trooper 1b: "Hello LRC-V3. What is your command?" 01336_ Mercenary 1a destroyed. 01338_ Trooper 1a destroyed. 01340_ Com. Wheel destroyed. 01341_ Destroyed Shock Absorption System. 01342_ The unstable cave ceiling collapses. 01343_ YI-UF0: "BLAM!" 01343_ Trooper 1b destroyed. 01344_ The unstable cave ceiling collapses. 01347_ Lgt. Assault Rifle destroyed. Map ----- +----------------------------------------------------+ | ????????????????????????????????????? | | ????????????????????????????????????? | | ????????????????????????????????????? | | ????????????????????????????????????? | | ????????????????????????????????????? | | ????????????????????????????????????? | | ????????????????????????????????????? | | ????????????????????????????????????? | | ????????????????????????????????????? | | ????????????????????????????????????? | | ????????????????????????????????????? | | ???????????????????? ???????????????? | | ???????????????????? ?????????????? | | ???????????????????? ?????????????? | | ??????????????????? ??????????????? | | ??????????????????? ??????????????? | | ??????????????????? ???????????????? | | ?????????????????? ???????????????? | | ?????????????????? #???????????????? | | ?????????????????? #???????????????? | | ??#####????####### #???????????????? | | ??# #?#### # ##??????????????? | | ??# ### # #??????????????? | | ??# # =g #??????????????? | | ??# #??????????????? | | ??# @ #??????????????? | | ??# #???????????????? | | ??# # #??????????????? | | ??# ## ##??????????????? | | ??# #### ####???????????????? | | ??# ##########??????????????????? | | ??# ##?????????????????????????? | | ??## ##????????????????????????? | | ???## ##???????????????????????? | | ????## #???????????????????????? | | ?????# #???????????????????????? | | ?????# ##???????????????????????? | | ?????# ##????############????????? | | ?????# ####?????# #????????? | | ?????# #????????# """ """ #????????? | | ?????# #????????# """ """ #????????? | | ?????# #????????# """ """ #????????? | | ?????# #????????# #????????? | | ?????# #????????# """ """ #????????? | | ?????# #????????# """ """ #????????? | | ?????# #????????# """ """ #????????? | | ?????#*###??????# ########## | | ????## = ######## """ """ ## | | ????# """ """ ## ####### | | ???# """ """ ## #?????? | +----------------------------------------------------+ Best States ------------- Heat Dissipation 47 Energy Generation 10 Energy Capacity 250 Matter Stores 300 Matter Capacity 300 Sight Range 16 Terrain Scan Density 10 Armor Coverage 150 Core Shielding 20 Evasion (%) 44 Recoil Reduction 1 Item Schematics ----------------- None Robot Schematics ------------------ None Fabricated ------------ Nothing Alien Tech Used ----------------- None Achievements -------------- None Challenges ------------ None Game ------ Seed OmegaBiocellNukerbomber Manual? 0 Play Time 00:11:30 Cumulative 544.7 hours Start 2022.06.01 @ 14:16:01 End 2022.06.01 @ 14:26:32 Sessions 1 Manual Loads 0 Difficulty Rogue Special Mode None Game No. 440 Rogue 440 Adventurer 0 Explorer 0 Win Type - Total 5 Types 4/0/0/1/0/0/0/0/0 Lore% 71 Gallery% 83 Achievement% 66 Wizard Run 0 Options --------- ASCII 0 Keyboard 1 Movement Numpad Keybinds 0 Fullscreen 1 Font 12/Terminus Map View 83x54 Tactical HUD 1 Map Filters NONE Filters NONE Steam 1 RUN: 1014d496-1771-40e5-8bb1-5d5f5a78f99f